{"text_format":"1","workbook":"xlsx","n_sheets":3,"sheets":["Produktionsanlæg","Distributionsanlæg","Fællesfunktionsanlæg"],"not_rendered":{"charts":0,"images":0,"macros":1,"external_links":0,"defined_names":2,"comments":0,"pivot_tables":0},"unopened":[],"bounds":{"document_bytes":16777216,"sheet_cells":100000,"rows_first":2000,"rows_last":500,"rows_between":2000,"halvings":0,"cell_chars":16384,"cell_head_chars":4096},"cells_cut":0,"cells_raw":0,"read":"whole","date_system":"1900"}

{"sheet":"Produktionsanlæg","index":0,"n_rows":552,"n_cols":9,"rows_kept":552,"cut":false,"hidden":false,"merged":[[0,0,1,0],[0,1,1,1],[0,2,1,2],[0,3,1,3],[0,8,1,8],[0,4,1,4],[0,5,1,5],[0,6,1,6],[0,7,1,7]]}
["Produktionsanlæg","Enhed","Standard-levetid","Samlet mængde per 31/12-2022","Samlet mængde per 31/12-2023","Samlet mængde per 31/12-2024","Afvigelse 2022-2023","Afvigelse 2023-2024","Bemærkninger"]
[]
["Renseanlæg 1",null,null,null,null,null,{"$f":"IF(D3=\"\",IF(E3>0,\"Ny data\",IF(E3=\"\",\"\",0)),IF(D3=0,IF(E3=0,0,\"Ny data\"),(E3-D3)/D3))","v":""},{"$f":"IF(E3=\"\",IF(F3>0,\"Ny data\",IF(F3=\"\",\"\",0)),IF(E3=0,IF(F3=0,0,\"Ny data\"),(F3-E3)/E3))","v":""}]
["Mindre renseanlæg",null,null,null,null,null,"",""]
["Mindre renseanlæg < 5.000 PE","PE",40,0,null,null,0,""]
["Renseanlæg >= 5.000 PE, Vandbehandling",null,null,null,null,null,"",""]
["Indløb med riste, Konstruktioner","PE",60,0,null,null,0,""]
["Indløb med riste, Mek/EL","PE",20,0,null,null,0,""]
["Indløb med riste, SRO","PE",10,0,null,null,0,""]
["Sand- og fedtfang, Kontruktioner","PE",60,27236,27236,27236,0,0]
["Sand- og fedtfang, Mek/EL","PE",20,27236,27236,27236,0,0]
["Sand- og fedtfang, SRO","PE",10,27236,27236,27236,0,0]
["Forklaring, Konstruktioner","PE",60,0,null,null,0,""]
["Forklaring, Mek/EL","PE",20,0,null,null,0,""]
["Forklaring, SRO","PE",10,0,null,null,0,""]
["Beluftningstanke, Konstruktioner","PE",60,0,null,null,0,""]
["Beluftningstanke, Mek/EL","PE",20,0,null,null,0,""]
["Beluftningstanke, SRO","PE",10,0,null,null,0,""]
["Efterklaringstanke, Konstruktioner","PE",60,0,null,null,0,""]
["Efterklaringstanke, Mek/El","PE",20,0,null,null,0,""]
["Efterklaringstanke, SRO","PE",10,0,null,null,0,""]
["Efterbehandlingsanlæg (sandfilter), Konstruktioner","PE",60,0,null,null,0,""]
["Efterbehandlingsanlæg (sandfilter), Mek/EL","PE",20,0,null,null,0,""]
["Efterbehandlingsanlæg (sandfilter), SRO","PE",10,0,null,null,0,""]
["Renseanlæg >= 5.000 PE, Slambehandling",null,null,null,null,null,"",""]
["Forafvanding, slam, Konstruktion","PE",60,0,null,null,0,""]
["Forafvanding, slam, Mek/EL","PE",20,0,null,null,0,""]
["Forafvanding, slam, SRO","PE",10,0,null,null,0,""]
["Rådnetanke, slam, Konstruktioner","PE",60,0,null,null,0,""]
["Rådnetanke, slam, Mek/EL","PE",20,0,null,null,0,""]
["Rådnetanke, slam, SRO","PE",10,0,null,null,0,""]
["Gasdisponering, Konstruktioner","PE",60,0,null,null,0,""]
["Gasdisponering, Mek/EL","PE",20,0,null,null,0,""]
["Gasdisponering, SRO","PE",10,0,null,null,0,""]
["Gasdisponering - elproduktionsanlæg, Konstruktioner","PE",60,0,null,null,0,""]
["Gasdisponering - elproduktionsanlæg, Mek/EL","PE",20,0,null,null,0,""]
["Gasdisponering - elproduktionsanlæg, SRO","PE",10,0,null,null,0,""]
["Gasrensning - Aktivt kulfilter","m3/t",15,0,null,null,0,""]
["Gasrensning - Biologisk skrubber","m3/t",15,0,null,null,0,""]
["Opgraderingsanlæg - Membran","m3/t",15,0,null,null,0,""]
["Varmeproduktionsanlæg","m3/t",15,0,null,null,0,""]
["Slutafvanding, slam - lavteknologisk (slambede), Konstruktioner","PE",60,0,null,null,0,""]
["Slutafvanding, slam - lavteknologisk (slambede), Mek/EL","PE",20,0,null,null,0,""]
["Slutafvanding, slam - lavteknologisk (slambede), SRO","PE",10,0,null,null,0,""]
["Slutafvanding, slam - højteknologisk (centrifuger), Konstruktioner","PE",60,0,null,null,0,""]
["Slutafvanding, slam - højteknologisk (centrifuger), Mek/El","PE",20,0,null,null,0,""]
["Slutafvanding, slam - højteknologisk (centrifuger), SRO","PE",10,0,null,null,0,""]
["Renseanlæg >= 5.000 PE, Slamdisponering",null,null,null,null,null,"",""]
["Slutdisponering, slam - lavteknologisk (slammineralisering), Konstruktioner","PE",60,0,null,null,0,""]
["Slutdisponering, slam - lavteknologisk (slammineralisering), Mek/EL","PE",20,0,null,null,0,""]
["Slutdisponering, slam - lavteknologisk (slammineralisering), SRO","PE",10,0,null,null,0,""]
["Slutdisponering, slam - højteknologisk (slamtørring), Konstruktioner","PE",60,0,null,null,0,""]
["Slutdisponering, slam - højteknologisk (slamtørring), Mek/EL","PE",20,0,null,null,0,""]
["Slutdisponering, slam - højteknologisk (slamtørring), SRO","PE",10,0,null,null,0,""]
["Slutdisponering, slam - højteknologisk (slamtørring og -forbrænding), Konstruktioner","PE",60,0,null,null,0,""]
["Slutdisponering, slam - højteknologisk (slamtørring og -forbrænding), Mek/EL","PE",20,0,null,null,0,""]
["Slutdisponering, slam - højteknologisk (slamtørring og -forbrænding), SRO","PE",10,0,null,null,0,""]
["Renseanlæg 2",null,null,null,null,null,"",""]
["Mindre renseanlæg",null,null,null,null,null,"",""]
["Mindre renseanlæg < 5.000 PE","PE",40,0,null,null,0,""]
["Renseanlæg >= 5.000 PE, Vandbehandling",null,null,null,null,null,"",""]
["Indløb med riste, Konstruktioner","PE",60,0,null,null,0,""]
["Indløb med riste, Mek/EL","PE",20,0,null,null,0,""]
["Indløb med riste, SRO","PE",10,0,null,null,0,""]
["Sand- og fedtfang, Kontruktioner","PE",60,0,null,null,0,""]
["Sand- og fedtfang, Mek/EL","PE",20,0,null,null,0,""]
["Sand- og fedtfang, SRO","PE",10,0,null,null,{"$f":"IF(D67=\"\",IF(E67>0,\"Ny data\",IF(E67=\"\",\"\",0)),IF(D67=0,IF(E67=0,0,\"Ny data\"),(E67-D67)/D67))","v":0},{"$f":"IF(E67=\"\",IF(F67>0,\"Ny data\",IF(F67=\"\",\"\",0)),IF(E67=0,IF(F67=0,0,\"Ny data\"),(F67-E67)/E67))","v":""}]
["Forklaring, Konstruktioner","PE",60,0,null,null,0,""]
["Forklaring, Mek/EL","PE",20,0,null,null,0,""]
["Forklaring, SRO","PE",10,0,null,null,0,""]
["Beluftningstanke, Konstruktioner","PE",60,0,null,null,0,""]
["Beluftningstanke, Mek/EL","PE",20,0,null,null,0,""]
["Beluftningstanke, SRO","PE",10,0,null,null,0,""]
["Efterklaringstanke, Konstruktioner","PE",60,0,null,null,0,""]
["Efterklaringstanke, Mek/El","PE",20,0,null,null,0,""]
["Efterklaringstanke, SRO","PE",10,0,null,null,0,""]
["Efterbehandlingsanlæg (sandfilter), Konstruktioner","PE",60,0,null,null,0,""]
["Efterbehandlingsanlæg (sandfilter), Mek/EL","PE",20,0,null,null,0,""]
["Efterbehandlingsanlæg (sandfilter), SRO","PE",10,0,null,null,0,""]
["Renseanlæg >= 5.000 PE, Slambehandling",null,null,null,null,null,"",""]
["Forafvanding, slam, Konstruktion","PE",60,0,null,null,0,""]
["Forafvanding, slam, Mek/EL","PE",20,0,null,null,0,""]
["Forafvanding, slam, SRO","PE",10,0,null,null,0,""]
["Rådnetanke, slam, Konstruktioner","PE",60,0,null,null,0,""]
["Rådnetanke, slam, Mek/EL","PE",20,0,null,null,0,""]
["Rådnetanke, slam, SRO","PE",10,0,null,null,0,""]
["Gasdisponering, Konstruktioner","PE",60,0,null,null,0,""]
["Gasdisponering, Mek/EL","PE",20,0,null,null,0,""]
["Gasdisponering, SRO","PE",10,0,null,null,0,""]
["Gasdisponering - elproduktionsanlæg, Konstruktioner","PE",60,0,null,null,0,""]
["Gasdisponering - elproduktionsanlæg, Mek/EL","PE",20,0,null,null,0,""]
["Gasdisponering - elproduktionsanlæg, SRO","PE",10,0,null,null,0,""]
["Gasrensning - Aktivt kulfilter","m3/t",15,0,null,null,0,""]
["Gasrensning - Biologisk skrubber","m3/t",15,0,null,null,0,""]
["Opgraderingsanlæg - Membran","m3/t",15,0,null,null,0,""]
["Varmeproduktionsanlæg","m3/t",15,0,null,null,0,""]
["Slutafvanding, slam - lavteknologisk (slambede), Konstruktioner","PE",60,0,null,null,0,""]
["Slutafvanding, slam - lavteknologisk (slambede), Mek/EL","PE",20,0,null,null,0,""]
["Slutafvanding, slam - lavteknologisk (slambede), SRO","PE",10,0,null,null,0,""]
["Slutafvanding, slam - højteknologisk (centrifuger), Konstruktioner","PE",60,0,null,null,0,""]
["Slutafvanding, slam - højteknologisk (centrifuger), Mek/El","PE",20,0,null,null,0,""]
["Slutafvanding, slam - højteknologisk (centrifuger), SRO","PE",10,0,null,null,0,""]
["Renseanlæg >= 5.000 PE, Slamdisponering",null,null,null,null,null,"",""]
["Slutdisponering, slam - lavteknologisk (slammineralisering), Konstruktioner","PE",60,0,null,null,0,""]
["Slutdisponering, slam - lavteknologisk (slammineralisering), Mek/EL","PE",20,0,null,null,0,""]
["Slutdisponering, slam - lavteknologisk (slammineralisering), SRO","PE",10,0,null,null,0,""]
["Slutdisponering, slam - højteknologisk (slamtørring), Konstruktioner","PE",60,0,null,null,0,""]
["Slutdisponering, slam - højteknologisk (slamtørring), Mek/EL","PE",20,0,null,null,0,""]
["Slutdisponering, slam - højteknologisk (slamtørring), SRO","PE",10,0,null,null,0,""]
["Slutdisponering, slam - højteknologisk (slamtørring og -forbrænding), Konstruktioner","PE",60,0,null,null,0,""]
["Slutdisponering, slam - højteknologisk (slamtørring og -forbrænding), Mek/EL","PE",20,0,null,null,0,""]
["Slutdisponering, slam - højteknologisk (slamtørring og -forbrænding), SRO","PE",10,0,null,null,0,""]
["Renseanlæg 3",null,null,null,null,null,"",""]
["Mindre renseanlæg",null,null,null,null,null,"",""]
["Mindre renseanlæg < 5.000 PE","PE",40,0,null,null,0,""]
["Renseanlæg >= 5.000 PE, Vandbehandling",null,null,null,null,null,"",""]
["Indløb med riste, Konstruktioner","PE",60,0,null,null,0,""]
["Indløb med riste, Mek/EL","PE",20,0,null,null,0,""]
["Indløb med riste, SRO","PE",10,0,null,null,0,""]
["Sand- og fedtfang, Kontruktioner","PE",60,0,null,null,0,""]
["Sand- og fedtfang, Mek/EL","PE",20,0,null,null,0,""]
["Sand- og fedtfang, SRO","PE",10,0,null,null,0,""]
["Forklaring, Konstruktioner","PE",60,0,null,null,0,""]
["Forklaring, Mek/EL","PE",20,0,null,null,0,""]
["Forklaring, SRO","PE",10,0,null,null,0,""]
["Beluftningstanke, Konstruktioner","PE",60,0,null,null,0,""]
["Beluftningstanke, Mek/EL","PE",20,0,null,null,0,""]
["Beluftningstanke, SRO","PE",10,0,null,null,0,""]
["Efterklaringstanke, Konstruktioner","PE",60,0,null,null,0,""]
["Efterklaringstanke, Mek/El","PE",20,0,null,null,0,""]
["Efterklaringstanke, SRO","PE",10,0,null,null,{"$f":"IF(D131=\"\",IF(E131>0,\"Ny data\",IF(E131=\"\",\"\",0)),IF(D131=0,IF(E131=0,0,\"Ny data\"),(E131-D131)/D131))","v":0},{"$f":"IF(E131=\"\",IF(F131>0,\"Ny data\",IF(F131=\"\",\"\",0)),IF(E131=0,IF(F131=0,0,\"Ny data\"),(F131-E131)/E131))","v":""}]
["Efterbehandlingsanlæg (sandfilter), Konstruktioner","PE",60,0,null,null,0,""]
["Efterbehandlingsanlæg (sandfilter), Mek/EL","PE",20,0,null,null,0,""]
["Efterbehandlingsanlæg (sandfilter), SRO","PE",10,0,null,null,0,""]
["Renseanlæg >= 5.000 PE, Slambehandling",null,null,null,null,null,"",""]
["Forafvanding, slam, Konstruktion","PE",60,0,null,null,0,""]
["Forafvanding, slam, Mek/EL","PE",20,0,null,null,0,""]
["Forafvanding, slam, SRO","PE",10,0,null,null,0,""]
["Rådnetanke, slam, Konstruktioner","PE",60,0,null,null,0,""]
["Rådnetanke, slam, Mek/EL","PE",20,0,null,null,0,""]
["Rådnetanke, slam, SRO","PE",10,0,null,null,0,""]
["Gasdisponering, Konstruktioner","PE",60,0,null,null,0,""]
["Gasdisponering, Mek/EL","PE",20,0,null,null,0,""]
["Gasdisponering, SRO","PE",10,0,null,null,0,""]
["Gasdisponering - elproduktionsanlæg, Konstruktioner","PE",60,0,null,null,0,""]
["Gasdisponering - elproduktionsanlæg, Mek/EL","PE",20,0,null,null,0,""]
["Gasdisponering - elproduktionsanlæg, SRO","PE",10,0,null,null,0,""]
["Gasrensning - Aktivt kulfilter","m3/t",15,0,null,null,0,""]
["Gasrensning - Biologisk skrubber","m3/t",15,0,null,null,0,""]
["Opgraderingsanlæg - Membran","m3/t",15,0,null,null,0,""]
["Varmeproduktionsanlæg","m3/t",15,0,null,null,0,""]
["Slutafvanding, slam - lavteknologisk (slambede), Konstruktioner","PE",60,0,null,null,0,""]
["Slutafvanding, slam - lavteknologisk (slambede), Mek/EL","PE",20,0,null,null,0,""]
["Slutafvanding, slam - lavteknologisk (slambede), SRO","PE",10,0,null,null,0,""]
["Slutafvanding, slam - højteknologisk (centrifuger), Konstruktioner","PE",60,0,null,null,0,""]
["Slutafvanding, slam - højteknologisk (centrifuger), Mek/El","PE",20,0,null,null,0,""]
["Slutafvanding, slam - højteknologisk (centrifuger), SRO","PE",10,0,null,null,0,""]
["Renseanlæg >= 5.000 PE, Slamdisponering",null,null,null,null,null,"",""]
["Slutdisponering, slam - lavteknologisk (slammineralisering), Konstruktioner","PE",60,0,null,null,0,""]
["Slutdisponering, slam - lavteknologisk (slammineralisering), Mek/EL","PE",20,0,null,null,0,""]
["Slutdisponering, slam - lavteknologisk (slammineralisering), SRO","PE",10,0,null,null,0,""]
["Slutdisponering, slam - højteknologisk (slamtørring), Konstruktioner","PE",60,0,null,null,0,""]
["Slutdisponering, slam - højteknologisk (slamtørring), Mek/EL","PE",20,0,null,null,0,""]
["Slutdisponering, slam - højteknologisk (slamtørring), SRO","PE",10,0,null,null,0,""]
["Slutdisponering, slam - højteknologisk (slamtørring og -forbrænding), Konstruktioner","PE",60,0,null,null,0,""]
["Slutdisponering, slam - højteknologisk (slamtørring og -forbrænding), Mek/EL","PE",20,0,null,null,0,""]
["Slutdisponering, slam - højteknologisk (slamtørring og -forbrænding), SRO","PE",10,0,null,null,0,""]
["Renseanlæg 4",null,null,null,null,null,"",""]
["Mindre renseanlæg",null,null,null,null,null,"",""]
["Mindre renseanlæg < 5.000 PE","PE",40,0,null,null,0,""]
["Renseanlæg >= 5.000 PE, Vandbehandling",null,null,null,null,null,"",""]
["Indløb med riste, Konstruktioner","PE",60,0,null,null,0,""]
["Indløb med riste, Mek/EL","PE",20,0,null,null,0,""]
["Indløb med riste, SRO","PE",10,0,null,null,0,""]
["Sand- og fedtfang, Kontruktioner","PE",60,0,null,null,0,""]
["Sand- og fedtfang, Mek/EL","PE",20,0,null,null,0,""]
["Sand- og fedtfang, SRO","PE",10,0,null,null,0,""]
["Forklaring, Konstruktioner","PE",60,0,null,null,0,""]
["Forklaring, Mek/EL","PE",20,0,null,null,0,""]
["Forklaring, SRO","PE",10,0,null,null,0,""]
["Beluftningstanke, Konstruktioner","PE",60,0,null,null,0,""]
["Beluftningstanke, Mek/EL","PE",20,0,null,null,0,""]
["Beluftningstanke, SRO","PE",10,0,null,null,0,""]
["Efterklaringstanke, Konstruktioner","PE",60,0,null,null,0,""]
["Efterklaringstanke, Mek/El","PE",20,0,null,null,0,""]
["Efterklaringstanke, SRO","PE",10,0,null,null,0,""]
["Efterbehandlingsanlæg (sandfilter), Konstruktioner","PE",60,0,null,null,0,""]
["Efterbehandlingsanlæg (sandfilter), Mek/EL","PE",20,0,null,null,0,""]
["Efterbehandlingsanlæg (sandfilter), SRO","PE",10,0,null,null,0,""]
["Renseanlæg >= 5.000 PE, Slambehandling",null,null,null,null,null,"",""]
["Forafvanding, slam, Konstruktion","PE",60,0,null,null,0,""]
["Forafvanding, slam, Mek/EL","PE",20,0,null,null,0,""]
["Forafvanding, slam, SRO","PE",10,0,null,null,0,""]
["Rådnetanke, slam, Konstruktioner","PE",60,0,null,null,0,""]
["Rådnetanke, slam, Mek/EL","PE",20,0,null,null,{"$f":"IF(D195=\"\",IF(E195>0,\"Ny data\",IF(E195=\"\",\"\",0)),IF(D195=0,IF(E195=0,0,\"Ny data\"),(E195-D195)/D195))","v":0},{"$f":"IF(E195=\"\",IF(F195>0,\"Ny data\",IF(F195=\"\",\"\",0)),IF(E195=0,IF(F195=0,0,\"Ny data\"),(F195-E195)/E195))","v":""}]
["Rådnetanke, slam, SRO","PE",10,0,null,null,0,""]
["Gasdisponering, Konstruktioner","PE",60,0,null,null,0,""]
["Gasdisponering, Mek/EL","PE",20,0,null,null,0,""]
["Gasdisponering, SRO","PE",10,0,null,null,0,""]
["Gasdisponering - elproduktionsanlæg, Konstruktioner","PE",60,0,null,null,0,""]
["Gasdisponering - elproduktionsanlæg, Mek/EL","PE",20,0,null,null,0,""]
["Gasdisponering - elproduktionsanlæg, SRO","PE",10,0,null,null,0,""]
["Gasrensning - Aktivt kulfilter","m3/t",15,0,null,null,0,""]
["Gasrensning - Biologisk skrubber","m3/t",15,0,null,null,0,""]
["Opgraderingsanlæg - Membran","m3/t",15,0,null,null,0,""]
["Varmeproduktionsanlæg","m3/t",15,0,null,null,0,""]
["Slutafvanding, slam - lavteknologisk (slambede), Konstruktioner","PE",60,0,null,null,0,""]
["Slutafvanding, slam - lavteknologisk (slambede), Mek/EL","PE",20,0,null,null,0,""]
["Slutafvanding, slam - lavteknologisk (slambede), SRO","PE",10,0,null,null,0,""]
["Slutafvanding, slam - højteknologisk (centrifuger), Konstruktioner","PE",60,0,null,null,0,""]
["Slutafvanding, slam - højteknologisk (centrifuger), Mek/El","PE",20,0,null,null,0,""]
["Slutafvanding, slam - højteknologisk (centrifuger), SRO","PE",10,0,null,null,0,""]
["Renseanlæg >= 5.000 PE, Slamdisponering",null,null,null,null,null,"",""]
["Slutdisponering, slam - lavteknologisk (slammineralisering), Konstruktioner","PE",60,0,null,null,0,""]
["Slutdisponering, slam - lavteknologisk (slammineralisering), Mek/EL","PE",20,0,null,null,0,""]
["Slutdisponering, slam - lavteknologisk (slammineralisering), SRO","PE",10,0,null,null,0,""]
["Slutdisponering, slam - højteknologisk (slamtørring), Konstruktioner","PE",60,0,null,null,0,""]
["Slutdisponering, slam - højteknologisk (slamtørring), Mek/EL","PE",20,0,null,null,0,""]
["Slutdisponering, slam - højteknologisk (slamtørring), SRO","PE",10,0,null,null,0,""]
["Slutdisponering, slam - højteknologisk (slamtørring og -forbrænding), Konstruktioner","PE",60,0,null,null,0,""]
["Slutdisponering, slam - højteknologisk (slamtørring og -forbrænding), Mek/EL","PE",20,0,null,null,0,""]
["Slutdisponering, slam - højteknologisk (slamtørring og -forbrænding), SRO","PE",10,0,null,null,0,""]
["Renseanlæg 5",null,null,null,null,null,"",""]
["Mindre renseanlæg",null,null,null,null,null,"",""]
["Mindre renseanlæg < 5.000 PE","PE",40,0,null,null,0,""]
["Renseanlæg >= 5.000 PE, Vandbehandling",null,null,null,null,null,"",""]
["Indløb med riste, Konstruktioner","PE",60,0,null,null,0,""]
["Indløb med riste, Mek/EL","PE",20,0,null,null,0,""]
["Indløb med riste, SRO","PE",10,0,null,null,0,""]
["Sand- og fedtfang, Kontruktioner","PE",60,0,null,null,0,""]
["Sand- og fedtfang, Mek/EL","PE",20,0,null,null,0,""]
["Sand- og fedtfang, SRO","PE",10,0,null,null,0,""]
["Forklaring, Konstruktioner","PE",60,0,null,null,0,""]
["Forklaring, Mek/EL","PE",20,0,null,null,0,""]
["Forklaring, SRO","PE",10,0,null,null,0,""]
["Beluftningstanke, Konstruktioner","PE",60,0,null,null,0,""]
["Beluftningstanke, Mek/EL","PE",20,0,null,null,0,""]
["Beluftningstanke, SRO","PE",10,0,null,null,0,""]
["Efterklaringstanke, Konstruktioner","PE",60,0,null,null,0,""]
["Efterklaringstanke, Mek/El","PE",20,0,null,null,0,""]
["Efterklaringstanke, SRO","PE",10,0,null,null,0,""]
["Efterbehandlingsanlæg (sandfilter), Konstruktioner","PE",60,0,null,null,0,""]
["Efterbehandlingsanlæg (sandfilter), Mek/EL","PE",20,0,null,null,0,""]
["Efterbehandlingsanlæg (sandfilter), SRO","PE",10,0,null,null,0,""]
["Renseanlæg >= 5.000 PE, Slambehandling",null,null,null,null,null,"",""]
["Forafvanding, slam, Konstruktion","PE",60,0,null,null,0,""]
["Forafvanding, slam, Mek/EL","PE",20,0,null,null,0,""]
["Forafvanding, slam, SRO","PE",10,0,null,null,0,""]
["Rådnetanke, slam, Konstruktioner","PE",60,0,null,null,0,""]
["Rådnetanke, slam, Mek/EL","PE",20,0,null,null,0,""]
["Rådnetanke, slam, SRO","PE",10,0,null,null,0,""]
["Gasdisponering, Konstruktioner","PE",60,0,null,null,0,""]
["Gasdisponering, Mek/EL","PE",20,0,null,null,0,""]
["Gasdisponering, SRO","PE",10,0,null,null,0,""]
["Gasdisponering - elproduktionsanlæg, Konstruktioner","PE",60,0,null,null,0,""]
["Gasdisponering - elproduktionsanlæg, Mek/EL","PE",20,0,null,null,0,""]
["Gasdisponering - elproduktionsanlæg, SRO","PE",10,0,null,null,0,""]
["Gasrensning - Aktivt kulfilter","m3/t",15,0,null,null,0,""]
["Gasrensning - Biologisk skrubber","m3/t",15,0,null,null,{"$f":"IF(D259=\"\",IF(E259>0,\"Ny data\",IF(E259=\"\",\"\",0)),IF(D259=0,IF(E259=0,0,\"Ny data\"),(E259-D259)/D259))","v":0},{"$f":"IF(E259=\"\",IF(F259>0,\"Ny data\",IF(F259=\"\",\"\",0)),IF(E259=0,IF(F259=0,0,\"Ny data\"),(F259-E259)/E259))","v":""}]
["Opgraderingsanlæg - Membran","m3/t",15,0,null,null,0,""]
["Varmeproduktionsanlæg","m3/t",15,0,null,null,0,""]
["Slutafvanding, slam - lavteknologisk (slambede), Konstruktioner","PE",60,0,null,null,0,""]
["Slutafvanding, slam - lavteknologisk (slambede), Mek/EL","PE",20,0,null,null,0,""]
["Slutafvanding, slam - lavteknologisk (slambede), SRO","PE",10,0,null,null,0,""]
["Slutafvanding, slam - højteknologisk (centrifuger), Konstruktioner","PE",60,0,null,null,0,""]
["Slutafvanding, slam - højteknologisk (centrifuger), Mek/El","PE",20,0,null,null,0,""]
["Slutafvanding, slam - højteknologisk (centrifuger), SRO","PE",10,0,null,null,0,""]
["Renseanlæg >= 5.000 PE, Slamdisponering",null,null,null,null,null,"",""]
["Slutdisponering, slam - lavteknologisk (slammineralisering), Konstruktioner","PE",60,0,null,null,0,""]
["Slutdisponering, slam - lavteknologisk (slammineralisering), Mek/EL","PE",20,0,null,null,0,""]
["Slutdisponering, slam - lavteknologisk (slammineralisering), SRO","PE",10,0,null,null,0,""]
["Slutdisponering, slam - højteknologisk (slamtørring), Konstruktioner","PE",60,0,null,null,0,""]
["Slutdisponering, slam - højteknologisk (slamtørring), Mek/EL","PE",20,0,null,null,0,""]
["Slutdisponering, slam - højteknologisk (slamtørring), SRO","PE",10,0,null,null,0,""]
["Slutdisponering, slam - højteknologisk (slamtørring og -forbrænding), Konstruktioner","PE",60,0,null,null,0,""]
["Slutdisponering, slam - højteknologisk (slamtørring og -forbrænding), Mek/EL","PE",20,0,null,null,0,""]
["Slutdisponering, slam - højteknologisk (slamtørring og -forbrænding), SRO","PE",10,0,null,null,0,""]
["Renseanlæg 6",null,null,null,null,null,"",""]
["Mindre renseanlæg",null,null,null,null,null,"",""]
["Mindre renseanlæg < 5.000 PE","PE",40,0,null,null,0,""]
["Renseanlæg >= 5.000 PE, Vandbehandling",null,null,null,null,null,"",""]
["Indløb med riste, Konstruktioner","PE",60,0,null,null,0,""]
["Indløb med riste, Mek/EL","PE",20,0,null,null,0,""]
["Indløb med riste, SRO","PE",10,0,null,null,0,""]
["Sand- og fedtfang, Kontruktioner","PE",60,0,null,null,0,""]
["Sand- og fedtfang, Mek/EL","PE",20,0,null,null,0,""]
["Sand- og fedtfang, SRO","PE",10,0,null,null,0,""]
["Forklaring, Konstruktioner","PE",60,0,null,null,0,""]
["Forklaring, Mek/EL","PE",20,0,null,null,0,""]
["Forklaring, SRO","PE",10,0,null,null,0,""]
["Beluftningstanke, Konstruktioner","PE",60,0,null,null,0,""]
["Beluftningstanke, Mek/EL","PE",20,0,null,null,0,""]
["Beluftningstanke, SRO","PE",10,0,null,null,0,""]
["Efterklaringstanke, Konstruktioner","PE",60,0,null,null,0,""]
["Efterklaringstanke, Mek/El","PE",20,0,null,null,0,""]
["Efterklaringstanke, SRO","PE",10,0,null,null,0,""]
["Efterbehandlingsanlæg (sandfilter), Konstruktioner","PE",60,0,null,null,0,""]
["Efterbehandlingsanlæg (sandfilter), Mek/EL","PE",20,0,null,null,0,""]
["Efterbehandlingsanlæg (sandfilter), SRO","PE",10,0,null,null,0,""]
["Renseanlæg >= 5.000 PE, Slambehandling",null,null,null,null,null,"",""]
["Forafvanding, slam, Konstruktion","PE",60,0,null,null,0,""]
["Forafvanding, slam, Mek/EL","PE",20,0,null,null,0,""]
["Forafvanding, slam, SRO","PE",10,0,null,null,0,""]
["Rådnetanke, slam, Konstruktioner","PE",60,0,null,null,0,""]
["Rådnetanke, slam, Mek/EL","PE",20,0,null,null,0,""]
["Rådnetanke, slam, SRO","PE",10,0,null,null,0,""]
["Gasdisponering, Konstruktioner","PE",60,0,null,null,0,""]
["Gasdisponering, Mek/EL","PE",20,0,null,null,0,""]
["Gasdisponering, SRO","PE",10,0,null,null,0,""]
["Gasdisponering - elproduktionsanlæg, Konstruktioner","PE",60,0,null,null,0,""]
["Gasdisponering - elproduktionsanlæg, Mek/EL","PE",20,0,null,null,0,""]
["Gasdisponering - elproduktionsanlæg, SRO","PE",10,0,null,null,0,""]
["Gasrensning - Aktivt kulfilter","m3/t",15,0,null,null,0,""]
["Gasrensning - Biologisk skrubber","m3/t",15,0,null,null,0,""]
["Opgraderingsanlæg - Membran","m3/t",15,0,null,null,0,""]
["Varmeproduktionsanlæg","m3/t",15,0,null,null,0,""]
["Slutafvanding, slam - lavteknologisk (slambede), Konstruktioner","PE",60,0,null,null,0,""]
["Slutafvanding, slam - lavteknologisk (slambede), Mek/EL","PE",20,0,null,null,0,""]
["Slutafvanding, slam - lavteknologisk (slambede), SRO","PE",10,0,null,null,0,""]
["Slutafvanding, slam - højteknologisk (centrifuger), Konstruktioner","PE",60,0,null,null,0,""]
["Slutafvanding, slam - højteknologisk (centrifuger), Mek/El","PE",20,0,null,null,0,""]
["Slutafvanding, slam - højteknologisk (centrifuger), SRO","PE",10,0,null,null,0,""]
["Renseanlæg >= 5.000 PE, Slamdisponering",null,null,null,null,null,{"$f":"IF(D323=\"\",IF(E323>0,\"Ny data\",IF(E323=\"\",\"\",0)),IF(D323=0,IF(E323=0,0,\"Ny data\"),(E323-D323)/D323))","v":""},{"$f":"IF(E323=\"\",IF(F323>0,\"Ny data\",IF(F323=\"\",\"\",0)),IF(E323=0,IF(F323=0,0,\"Ny data\"),(F323-E323)/E323))","v":""}]
["Slutdisponering, slam - lavteknologisk (slammineralisering), Konstruktioner","PE",60,0,null,null,0,""]
["Slutdisponering, slam - lavteknologisk (slammineralisering), Mek/EL","PE",20,0,null,null,0,""]
["Slutdisponering, slam - lavteknologisk (slammineralisering), SRO","PE",10,0,null,null,0,""]
["Slutdisponering, slam - højteknologisk (slamtørring), Konstruktioner","PE",60,0,null,null,0,""]
["Slutdisponering, slam - højteknologisk (slamtørring), Mek/EL","PE",20,0,null,null,0,""]
["Slutdisponering, slam - højteknologisk (slamtørring), SRO","PE",10,0,null,null,0,""]
["Slutdisponering, slam - højteknologisk (slamtørring og -forbrænding), Konstruktioner","PE",60,0,null,null,0,""]
["Slutdisponering, slam - højteknologisk (slamtørring og -forbrænding), Mek/EL","PE",20,0,null,null,0,""]
["Slutdisponering, slam - højteknologisk (slamtørring og -forbrænding), SRO","PE",10,0,null,null,0,""]
["Renseanlæg 7",null,null,null,null,null,"",""]
["Mindre renseanlæg",null,null,null,null,null,"",""]
["Mindre renseanlæg < 5.000 PE","PE",40,0,null,null,0,""]
["Renseanlæg >= 5.000 PE, Vandbehandling",null,null,null,null,null,"",""]
["Indløb med riste, Konstruktioner","PE",60,0,null,null,0,""]
["Indløb med riste, Mek/EL","PE",20,0,null,null,0,""]
["Indløb med riste, SRO","PE",10,0,null,null,0,""]
["Sand- og fedtfang, Kontruktioner","PE",60,0,null,null,0,""]
["Sand- og fedtfang, Mek/EL","PE",20,0,null,null,0,""]
["Sand- og fedtfang, SRO","PE",10,0,null,null,0,""]
["Forklaring, Konstruktioner","PE",60,0,null,null,0,""]
["Forklaring, Mek/EL","PE",20,0,null,null,0,""]
["Forklaring, SRO","PE",10,0,null,null,0,""]
["Beluftningstanke, Konstruktioner","PE",60,0,null,null,0,""]
["Beluftningstanke, Mek/EL","PE",20,0,null,null,0,""]
["Beluftningstanke, SRO","PE",10,0,null,null,0,""]
["Efterklaringstanke, Konstruktioner","PE",60,0,null,null,0,""]
["Efterklaringstanke, Mek/El","PE",20,0,null,null,0,""]
["Efterklaringstanke, SRO","PE",10,0,null,null,0,""]
["Efterbehandlingsanlæg (sandfilter), Konstruktioner","PE",60,0,null,null,0,""]
["Efterbehandlingsanlæg (sandfilter), Mek/EL","PE",20,0,null,null,0,""]
["Efterbehandlingsanlæg (sandfilter), SRO","PE",10,0,null,null,0,""]
["Renseanlæg >= 5.000 PE, Slambehandling",null,null,null,null,null,"",""]
["Forafvanding, slam, Konstruktion","PE",60,0,null,null,0,""]
["Forafvanding, slam, Mek/EL","PE",20,0,null,null,0,""]
["Forafvanding, slam, SRO","PE",10,0,null,null,0,""]
["Rådnetanke, slam, Konstruktioner","PE",60,0,null,null,0,""]
["Rådnetanke, slam, Mek/EL","PE",20,0,null,null,0,""]
["Rådnetanke, slam, SRO","PE",10,0,null,null,0,""]
["Gasdisponering, Konstruktioner","PE",60,0,null,null,0,""]
["Gasdisponering, Mek/EL","PE",20,0,null,null,0,""]
["Gasdisponering, SRO","PE",10,0,null,null,0,""]
["Gasdisponering - elproduktionsanlæg, Konstruktioner","PE",60,0,null,null,0,""]
["Gasdisponering - elproduktionsanlæg, Mek/EL","PE",20,0,null,null,0,""]
["Gasdisponering - elproduktionsanlæg, SRO","PE",10,0,null,null,0,""]
["Gasrensning - Aktivt kulfilter","m3/t",15,0,null,null,0,""]
["Gasrensning - Biologisk skrubber","m3/t",15,0,null,null,0,""]
["Opgraderingsanlæg - Membran","m3/t",15,0,null,null,0,""]
["Varmeproduktionsanlæg","m3/t",15,0,null,null,0,""]
["Slutafvanding, slam - lavteknologisk (slambede), Konstruktioner","PE",60,0,null,null,0,""]
["Slutafvanding, slam - lavteknologisk (slambede), Mek/EL","PE",20,0,null,null,0,""]
["Slutafvanding, slam - lavteknologisk (slambede), SRO","PE",10,0,null,null,0,""]
["Slutafvanding, slam - højteknologisk (centrifuger), Konstruktioner","PE",60,0,null,null,0,""]
["Slutafvanding, slam - højteknologisk (centrifuger), Mek/El","PE",20,0,null,null,0,""]
["Slutafvanding, slam - højteknologisk (centrifuger), SRO","PE",10,0,null,null,0,""]
["Renseanlæg >= 5.000 PE, Slamdisponering",null,null,null,null,null,"",""]
["Slutdisponering, slam - lavteknologisk (slammineralisering), Konstruktioner","PE",60,0,null,null,0,""]
["Slutdisponering, slam - lavteknologisk (slammineralisering), Mek/EL","PE",20,0,null,null,0,""]
["Slutdisponering, slam - lavteknologisk (slammineralisering), SRO","PE",10,0,null,null,0,""]
["Slutdisponering, slam - højteknologisk (slamtørring), Konstruktioner","PE",60,0,null,null,0,""]
["Slutdisponering, slam - højteknologisk (slamtørring), Mek/EL","PE",20,0,null,null,0,""]
["Slutdisponering, slam - højteknologisk (slamtørring), SRO","PE",10,0,null,null,0,""]
["Slutdisponering, slam - højteknologisk (slamtørring og -forbrænding), Konstruktioner","PE",60,0,null,null,0,""]
["Slutdisponering, slam - højteknologisk (slamtørring og -forbrænding), Mek/EL","PE",20,0,null,null,0,""]
["Slutdisponering, slam - højteknologisk (slamtørring og -forbrænding), SRO","PE",10,0,null,null,{"$f":"IF(D387=\"\",IF(E387>0,\"Ny data\",IF(E387=\"\",\"\",0)),IF(D387=0,IF(E387=0,0,\"Ny data\"),(E387-D387)/D387))","v":0},{"$f":"IF(E387=\"\",IF(F387>0,\"Ny data\",IF(F387=\"\",\"\",0)),IF(E387=0,IF(F387=0,0,\"Ny data\"),(F387-E387)/E387))","v":""}]
["Renseanlæg 8",null,null,null,null,null,"",""]
["Mindre renseanlæg",null,null,null,null,null,"",""]
["Mindre renseanlæg < 5.000 PE","PE",40,0,null,null,0,""]
["Renseanlæg >= 5.000 PE, Vandbehandling",null,null,null,null,null,"",""]
["Indløb med riste, Konstruktioner","PE",60,0,null,null,0,""]
["Indløb med riste, Mek/EL","PE",20,0,null,null,0,""]
["Indløb med riste, SRO","PE",10,0,null,null,0,""]
["Sand- og fedtfang, Kontruktioner","PE",60,0,null,null,0,""]
["Sand- og fedtfang, Mek/EL","PE",20,0,null,null,0,""]
["Sand- og fedtfang, SRO","PE",10,0,null,null,0,""]
["Forklaring, Konstruktioner","PE",60,0,null,null,0,""]
["Forklaring, Mek/EL","PE",20,0,null,null,0,""]
["Forklaring, SRO","PE",10,0,null,null,0,""]
["Beluftningstanke, Konstruktioner","PE",60,0,null,null,0,""]
["Beluftningstanke, Mek/EL","PE",20,0,null,null,0,""]
["Beluftningstanke, SRO","PE",10,0,null,null,0,""]
["Efterklaringstanke, Konstruktioner","PE",60,0,null,null,0,""]
["Efterklaringstanke, Mek/El","PE",20,0,null,null,0,""]
["Efterklaringstanke, SRO","PE",10,0,null,null,0,""]
["Efterbehandlingsanlæg (sandfilter), Konstruktioner","PE",60,0,null,null,0,""]
["Efterbehandlingsanlæg (sandfilter), Mek/EL","PE",20,0,null,null,0,""]
["Efterbehandlingsanlæg (sandfilter), SRO","PE",10,0,null,null,0,""]
["Renseanlæg >= 5.000 PE, Slambehandling",null,null,null,null,null,"",""]
["Forafvanding, slam, Konstruktion","PE",60,0,null,null,0,""]
["Forafvanding, slam, Mek/EL","PE",20,0,null,null,0,""]
["Forafvanding, slam, SRO","PE",10,0,null,null,0,""]
["Rådnetanke, slam, Konstruktioner","PE",60,0,null,null,0,""]
["Rådnetanke, slam, Mek/EL","PE",20,0,null,null,0,""]
["Rådnetanke, slam, SRO","PE",10,0,null,null,0,""]
["Gasdisponering, Konstruktioner","PE",60,0,null,null,0,""]
["Gasdisponering, Mek/EL","PE",20,0,null,null,0,""]
["Gasdisponering, SRO","PE",10,0,null,null,0,""]
["Gasdisponering - elproduktionsanlæg, Konstruktioner","PE",60,0,null,null,0,""]
["Gasdisponering - elproduktionsanlæg, Mek/EL","PE",20,0,null,null,0,""]
["Gasdisponering - elproduktionsanlæg, SRO","PE",10,0,null,null,0,""]
["Gasrensning - Aktivt kulfilter","m3/t",15,0,null,null,0,""]
["Gasrensning - Biologisk skrubber","m3/t",15,0,null,null,0,""]
["Opgraderingsanlæg - Membran","m3/t",15,0,null,null,0,""]
["Varmeproduktionsanlæg","m3/t",15,0,null,null,0,""]
["Slutafvanding, slam - lavteknologisk (slambede), Konstruktioner","PE",60,0,null,null,0,""]
["Slutafvanding, slam - lavteknologisk (slambede), Mek/EL","PE",20,0,null,null,0,""]
["Slutafvanding, slam - lavteknologisk (slambede), SRO","PE",10,0,null,null,0,""]
["Slutafvanding, slam - højteknologisk (centrifuger), Konstruktioner","PE",60,0,null,null,0,""]
["Slutafvanding, slam - højteknologisk (centrifuger), Mek/El","PE",20,0,null,null,0,""]
["Slutafvanding, slam - højteknologisk (centrifuger), SRO","PE",10,0,null,null,0,""]
["Renseanlæg >= 5.000 PE, Slamdisponering",null,null,null,null,null,"",""]
["Slutdisponering, slam - lavteknologisk (slammineralisering), Konstruktioner","PE",60,0,null,null,0,""]
["Slutdisponering, slam - lavteknologisk (slammineralisering), Mek/EL","PE",20,0,null,null,0,""]
["Slutdisponering, slam - lavteknologisk (slammineralisering), SRO","PE",10,0,null,null,0,""]
["Slutdisponering, slam - højteknologisk (slamtørring), Konstruktioner","PE",60,0,null,null,0,""]
["Slutdisponering, slam - højteknologisk (slamtørring), Mek/EL","PE",20,0,null,null,0,""]
["Slutdisponering, slam - højteknologisk (slamtørring), SRO","PE",10,0,null,null,0,""]
["Slutdisponering, slam - højteknologisk (slamtørring og -forbrænding), Konstruktioner","PE",60,0,null,null,0,""]
["Slutdisponering, slam - højteknologisk (slamtørring og -forbrænding), Mek/EL","PE",20,0,null,null,0,""]
["Slutdisponering, slam - højteknologisk (slamtørring og -forbrænding), SRO","PE",10,0,null,null,0,""]
["Renseanlæg 9",null,null,null,null,null,"",""]
["Mindre renseanlæg",null,null,null,null,null,"",""]
["Mindre renseanlæg < 5.000 PE","PE",40,0,null,null,0,""]
["Renseanlæg >= 5.000 PE, Vandbehandling",null,null,null,null,null,"",""]
["Indløb med riste, Konstruktioner","PE",60,0,null,null,0,""]
["Indløb med riste, Mek/EL","PE",20,0,null,null,0,""]
["Indløb med riste, SRO","PE",10,0,null,null,0,""]
["Sand- og fedtfang, Kontruktioner","PE",60,0,null,null,0,""]
["Sand- og fedtfang, Mek/EL","PE",20,0,null,null,{"$f":"IF(D451=\"\",IF(E451>0,\"Ny data\",IF(E451=\"\",\"\",0)),IF(D451=0,IF(E451=0,0,\"Ny data\"),(E451-D451)/D451))","v":0},{"$f":"IF(E451=\"\",IF(F451>0,\"Ny data\",IF(F451=\"\",\"\",0)),IF(E451=0,IF(F451=0,0,\"Ny data\"),(F451-E451)/E451))","v":""}]
["Sand- og fedtfang, SRO","PE",10,0,null,null,0,""]
["Forklaring, Konstruktioner","PE",60,0,null,null,0,""]
["Forklaring, Mek/EL","PE",20,0,null,null,0,""]
["Forklaring, SRO","PE",10,0,null,null,0,""]
["Beluftningstanke, Konstruktioner","PE",60,0,null,null,0,""]
["Beluftningstanke, Mek/EL","PE",20,0,null,null,0,""]
["Beluftningstanke, SRO","PE",10,0,null,null,0,""]
["Efterklaringstanke, Konstruktioner","PE",60,0,null,null,0,""]
["Efterklaringstanke, Mek/El","PE",20,0,null,null,0,""]
["Efterklaringstanke, SRO","PE",10,0,null,null,0,""]
["Efterbehandlingsanlæg (sandfilter), Konstruktioner","PE",60,0,null,null,0,""]
["Efterbehandlingsanlæg (sandfilter), Mek/EL","PE",20,0,null,null,0,""]
["Efterbehandlingsanlæg (sandfilter), SRO","PE",10,0,null,null,0,""]
["Renseanlæg >= 5.000 PE, Slambehandling",null,null,null,null,null,"",""]
["Forafvanding, slam, Konstruktion","PE",60,0,null,null,0,""]
["Forafvanding, slam, Mek/EL","PE",20,0,null,null,0,""]
["Forafvanding, slam, SRO","PE",10,0,null,null,0,""]
["Rådnetanke, slam, Konstruktioner","PE",60,0,null,null,0,""]
["Rådnetanke, slam, Mek/EL","PE",20,0,null,null,0,""]
["Rådnetanke, slam, SRO","PE",10,0,null,null,0,""]
["Gasdisponering, Konstruktioner","PE",60,0,null,null,0,""]
["Gasdisponering, Mek/EL","PE",20,0,null,null,0,""]
["Gasdisponering, SRO","PE",10,0,null,null,0,""]
["Gasdisponering - elproduktionsanlæg, Konstruktioner","PE",60,0,null,null,0,""]
["Gasdisponering - elproduktionsanlæg, Mek/EL","PE",20,0,null,null,0,""]
["Gasdisponering - elproduktionsanlæg, SRO","PE",10,0,null,null,0,""]
["Gasrensning - Aktivt kulfilter","m3/t",15,0,null,null,0,""]
["Gasrensning - Biologisk skrubber","m3/t",15,0,null,null,0,""]
["Opgraderingsanlæg - Membran","m3/t",15,0,null,null,0,""]
["Varmeproduktionsanlæg","m3/t",15,0,null,null,0,""]
["Slutafvanding, slam - lavteknologisk (slambede), Konstruktioner","PE",60,0,null,null,0,""]
["Slutafvanding, slam - lavteknologisk (slambede), Mek/EL","PE",20,0,null,null,0,""]
["Slutafvanding, slam - lavteknologisk (slambede), SRO","PE",10,0,null,null,0,""]
["Slutafvanding, slam - højteknologisk (centrifuger), Konstruktioner","PE",60,0,null,null,0,""]
["Slutafvanding, slam - højteknologisk (centrifuger), Mek/El","PE",20,0,null,null,0,""]
["Slutafvanding, slam - højteknologisk (centrifuger), SRO","PE",10,0,null,null,0,""]
["Renseanlæg >= 5.000 PE, Slamdisponering",null,null,null,null,null,"",""]
["Slutdisponering, slam - lavteknologisk (slammineralisering), Konstruktioner","PE",60,0,null,null,0,""]
["Slutdisponering, slam - lavteknologisk (slammineralisering), Mek/EL","PE",20,0,null,null,0,""]
["Slutdisponering, slam - lavteknologisk (slammineralisering), SRO","PE",10,0,null,null,0,""]
["Slutdisponering, slam - højteknologisk (slamtørring), Konstruktioner","PE",60,0,null,null,0,""]
["Slutdisponering, slam - højteknologisk (slamtørring), Mek/EL","PE",20,0,null,null,0,""]
["Slutdisponering, slam - højteknologisk (slamtørring), SRO","PE",10,0,null,null,0,""]
["Slutdisponering, slam - højteknologisk (slamtørring og -forbrænding), Konstruktioner","PE",60,0,null,null,0,""]
["Slutdisponering, slam - højteknologisk (slamtørring og -forbrænding), Mek/EL","PE",20,0,null,null,0,""]
["Slutdisponering, slam - højteknologisk (slamtørring og -forbrænding), SRO","PE",10,0,null,null,0,""]
["Renseanlæg 10",null,null,null,null,null,"",""]
["Mindre renseanlæg",null,null,null,null,null,"",""]
["Mindre renseanlæg < 5.000 PE","PE",40,0,null,null,0,""]
["Renseanlæg >= 5.000 PE, Vandbehandling",null,null,null,null,null,"",""]
["Indløb med riste, Konstruktioner","PE",60,0,null,null,0,""]
["Indløb med riste, Mek/EL","PE",20,0,null,null,0,""]
["Indløb med riste, SRO","PE",10,0,null,null,0,""]
["Sand- og fedtfang, Kontruktioner","PE",60,0,null,null,0,""]
["Sand- og fedtfang, Mek/EL","PE",20,0,null,null,0,""]
["Sand- og fedtfang, SRO","PE",10,0,null,null,0,""]
["Forklaring, Konstruktioner","PE",60,0,null,null,0,""]
["Forklaring, Mek/EL","PE",20,0,null,null,0,""]
["Forklaring, SRO","PE",10,0,null,null,0,""]
["Beluftningstanke, Konstruktioner","PE",60,0,null,null,0,""]
["Beluftningstanke, Mek/EL","PE",20,0,null,null,0,""]
["Beluftningstanke, SRO","PE",10,0,null,null,0,""]
["Efterklaringstanke, Konstruktioner","PE",60,0,null,null,0,""]
["Efterklaringstanke, Mek/El","PE",20,0,null,null,{"$f":"IF(D515=\"\",IF(E515>0,\"Ny data\",IF(E515=\"\",\"\",0)),IF(D515=0,IF(E515=0,0,\"Ny data\"),(E515-D515)/D515))","v":0},{"$f":"IF(E515=\"\",IF(F515>0,\"Ny data\",IF(F515=\"\",\"\",0)),IF(E515=0,IF(F515=0,0,\"Ny data\"),(F515-E515)/E515))","v":""}]
["Efterklaringstanke, SRO","PE",10,0,null,null,0,""]
["Efterbehandlingsanlæg (sandfilter), Konstruktioner","PE",60,0,null,null,0,""]
["Efterbehandlingsanlæg (sandfilter), Mek/EL","PE",20,0,null,null,0,""]
["Efterbehandlingsanlæg (sandfilter), SRO","PE",10,0,null,null,0,""]
["Renseanlæg >= 5.000 PE, Slambehandling",null,null,null,null,null,"",""]
["Forafvanding, slam, Konstruktion","PE",60,0,null,null,0,""]
["Forafvanding, slam, Mek/EL","PE",20,0,null,null,0,""]
["Forafvanding, slam, SRO","PE",10,0,null,null,0,""]
["Rådnetanke, slam, Konstruktioner","PE",60,0,null,null,0,""]
["Rådnetanke, slam, Mek/EL","PE",20,0,null,null,0,""]
["Rådnetanke, slam, SRO","PE",10,0,null,null,0,""]
["Gasdisponering, Konstruktioner","PE",60,0,null,null,0,""]
["Gasdisponering, Mek/EL","PE",20,0,null,null,0,""]
["Gasdisponering, SRO","PE",10,0,null,null,0,""]
["Gasdisponering - elproduktionsanlæg, Konstruktioner","PE",60,0,null,null,0,""]
["Gasdisponering - elproduktionsanlæg, Mek/EL","PE",20,0,null,null,0,""]
["Gasdisponering - elproduktionsanlæg, SRO","PE",10,0,null,null,0,""]
["Gasrensning - Aktivt kulfilter","m3/t",15,0,null,null,0,""]
["Gasrensning - Biologisk skrubber","m3/t",15,0,null,null,0,""]
["Opgraderingsanlæg - Membran","m3/t",15,0,null,null,0,""]
["Varmeproduktionsanlæg","m3/t",15,0,null,null,0,""]
["Slutafvanding, slam - lavteknologisk (slambede), Konstruktioner","PE",60,0,null,null,0,""]
["Slutafvanding, slam - lavteknologisk (slambede), Mek/EL","PE",20,0,null,null,0,""]
["Slutafvanding, slam - lavteknologisk (slambede), SRO","PE",10,0,null,null,0,""]
["Slutafvanding, slam - højteknologisk (centrifuger), Konstruktioner","PE",60,0,null,null,0,""]
["Slutafvanding, slam - højteknologisk (centrifuger), Mek/El","PE",20,0,null,null,0,""]
["Slutafvanding, slam - højteknologisk (centrifuger), SRO","PE",10,0,null,null,0,""]
["Renseanlæg >= 5.000 PE, Slamdisponering",null,null,null,null,null,"",""]
["Slutdisponering, slam - lavteknologisk (slammineralisering), Konstruktioner","PE",60,0,null,null,0,""]
["Slutdisponering, slam - lavteknologisk (slammineralisering), Mek/EL","PE",20,0,null,null,0,""]
["Slutdisponering, slam - lavteknologisk (slammineralisering), SRO","PE",10,0,null,null,0,""]
["Slutdisponering, slam - højteknologisk (slamtørring), Konstruktioner","PE",60,0,null,null,0,""]
["Slutdisponering, slam - højteknologisk (slamtørring), Mek/EL","PE",20,0,null,null,0,""]
["Slutdisponering, slam - højteknologisk (slamtørring), SRO","PE",10,0,null,null,0,""]
["Slutdisponering, slam - højteknologisk (slamtørring og -forbrænding), Konstruktioner","PE",60,0,null,null,0,""]
["Slutdisponering, slam - højteknologisk (slamtørring og -forbrænding), Mek/EL","PE",20,0,null,null,0,""]
["Slutdisponering, slam - højteknologisk (slamtørring og -forbrænding), SRO","PE",20,0,null,null,0,""]

{"sheet":"Distributionsanlæg","index":1,"n_rows":318,"n_cols":9,"rows_kept":318,"cut":false,"hidden":false,"merged":[[0,0,1,0],[0,1,1,1],[0,2,1,2],[0,3,1,3],[0,8,1,8],[0,4,1,4],[0,5,1,5],[0,6,1,6],[0,7,1,7]]}
["Distributionsanlæg","Enhed","Standard-levetid","Samlet mængde per 31/12-2022","Samlet mængde per 31/12-2023","Samlet mængde per 31/12-2024","Afvigelse 2022-2023","Afvigelse 2023-2024","Bemærkninger"]
[]
["Ledningsnet - Land",null,null,null,null,null,{"$f":"IF(D3=\"\",IF(E3>0,\"Ny data\",IF(E3=\"\",\"\",0)),IF(D3=0,IF(E3=0,0,\"Ny data\"),(E3-D3)/D3))","v":""},{"$f":"IF(E3=\"\",IF(F3>0,\"Ny data\",IF(F3=\"\",\"\",0)),IF(E3=0,IF(F3=0,0,\"Ny data\"),(F3-E3)/E3))","v":""}]
["Ledningsnet ≤ Ø 200 mm ","meter",75,399.1156047633358,419.91500000000013,419.91500000000013,5.2113710885841678E-2,0]
["Ø 200 mm < Ledningsnet ≤ Ø 500 mm ","meter",75,412.87177115346634,436.77240000000006,436.77240000000006,5.7888745408195386E-2,0]
["Ø 500 mm < Ledningsnet ≤ Ø 800 mm","meter",75,155.32675201828593,204.94800000000004,204.94800000000004,0.31946362965133279,0,"Normal udvikling"]
["Ø 800 mm < Ledningsnet ≤ Ø 1000 mm","meter",75,14.168145629917646,14.170999999999999,14.170999999999999,2.0146391467956224E-4,0]
["Ø 1000 mm < Ledningsnet ≤ Ø 1200 mm","meter",75,64.822231058515285,64.835599999999999,64.835599999999999,2.0624007021057046E-4,0]
["Ø 1200 mm < Ledningsnet ≤ Ø 1600 mm","meter",75,908.75611844887908,908.96580000000006,908.96580000000006,2.3073467882546656E-4,0]
["Ledningsnet > Ø 1600 mm (rørbassiner og transportledninger)","meter",75,387.35054062832376,330.33479999999997,330.33479999999997,-0.14719416819668868,0]
["Strømpeforing ≤ Ø 200 mm","meter",50,213.35,230.65,230.65,8.1087415045699607E-2,0]
["Strømpeforing Ø 200 mm < Ledningsnet ≤ Ø 500 mm","meter",50,382.04,382.04,382.04,0,0]
["Strømpeforing Ø 500 mm < Ledningsnet ≤ Ø 800 mm","meter",50,150.03,150.03,150.03,0,0]
["Strømpeforing Ø 800 mm < Ledningsnet ≤ Ø 1000 mm","meter",50,0,0,0,0,0]
["Strømpeforing Ø 1000 mm < Ledningsnet ≤ Ø 1200 mm","meter",50,0,0,0,0,0]
["Strømpeforing Ø 1200 mm < Ledningsnet ≤ Ø 1600 mm","meter",50,97.68,97.65,97.65,-3.0712530712531872E-4,0]
["Ledningsnet - By",null,null,null,null,null,"",""]
["Ledningsnet ≤ Ø 200 mm ","meter",75,882.53,882.52749999999992,882.52749999999992,-2.8327648919068699E-6,0]
["Ø 200 mm < Ledningsnet ≤ Ø 500 mm ","meter",75,1128.0700000000002,1128.1099999999999,1128.1099999999999,3.5458792450589271E-5,0]
["Ø 500 mm < Ledningsnet ≤ Ø 800 mm","meter",75,734.00067770718215,730.30269999999996,730.30269999999996,-5.038112115555075E-3,0]
["Ø 800 mm < Ledningsnet ≤ Ø 1000 mm","meter",75,646.20324326298396,645.11040000000003,645.11040000000003,-1.6911757630086381E-3,0]
["Ø 1000 mm < Ledningsnet ≤ Ø 1200 mm","meter",75,506.70211790249164,501.50160000000005,501.50160000000005,-1.0263461940951185E-2,0]
["Ø 1200 mm < Ledningsnet ≤ Ø 1600 mm","meter",75,4243,4221.2320000000045,4221.2320000000045,-5.1303323120423005E-3,0]
["Ledningsnet > Ø 1600 mm (rørbassiner og transportledninger)","meter",75,2776,2775.838400000001,2775.838400000001,-5.8213256483788939E-5,0]
["Strømpeforing ≤ Ø 200 mm","meter",50,290.83,316.62000000000006,316.62000000000006,8.8677234123027471E-2,0]
["Strømpeforing Ø 200 mm < Ledningsnet ≤ Ø 500 mm","meter",50,557.82999999999993,611.36,611.36,9.5961135112848164E-2,0]
["Strømpeforing Ø 500 mm < Ledningsnet ≤ Ø 800 mm","meter",50,185.12018751435198,446.70959999999997,446.70959999999997,1.4130788003084078,0,"Data opdateret"]
["Strømpeforing Ø 800 mm < Ledningsnet ≤ Ø 1000 mm","meter",50,244.17000000000002,244.17000000000002,244.17000000000002,0,0]
["Strømpeforing Ø 1000 mm < Ledningsnet ≤ Ø 1200 mm","meter",50,0,0,0,0,0]
["Strømpeforing Ø 1200 mm < Ledningsnet ≤ Ø 1600 mm","meter",50,41.2,41.2,41.2,0,0]
["Ledningsnet - City",null,null,null,null,null,"",""]
["Ledningsnet ≤ Ø 200 mm ","meter",75,8277.1800000000094,8594.8040000000037,8594.8040000000037,3.8373455693846696E-2,0]
["Ø 200 mm < Ledningsnet ≤ Ø 500 mm ","meter",75,10088.464748133769,10414.1957,10414.1957,3.2287464941232739E-2,0]
["Ø 500 mm < Ledningsnet ≤ Ø 800 mm","meter",75,1265.8398349656306,1442.2733999999998,1442.2734,0.13938063897251235,1.5764949658173832E-16]
["Ø 800 mm < Ledningsnet ≤ Ø 1000 mm","meter",75,1027.1897934768356,1110.8529000000001,1110.8529000000001,8.144853760664944E-2,0]
["Ø 1000 mm < Ledningsnet ≤ Ø 1200 mm","meter",75,342.33551703543327,342.35919999999999,342.35919999999999,6.9180565229712507E-5,0]
["Ø 1200 mm < Ledningsnet ≤ Ø 1600 mm","meter",75,1348.75,1348.4799999999998,1348.4799999999998,-2.0018535681201794E-4,0]
["Ledningsnet > Ø 1600 mm (rørbassiner og transportledninger)","meter",75,3288.4338000576195,3216.8293999999996,3216.8293999999996,-2.1774621114880037E-2,0]
["Strømpeforing ≤ Ø 200 mm","meter",50,5944.21,6139.5700000000024,6139.5700000000024,3.2865595259925606E-2,0]
["Strømpeforing Ø 200 mm < Ledningsnet ≤ Ø 500 mm","meter",50,8048.4102268334236,8129.7000000000016,8129.7000000000016,1.010010311049475E-2,0]
["Strømpeforing Ø 500 mm < Ledningsnet ≤ Ø 800 mm","meter",50,1114.58,1007.9900000000001,1007.9900000000001,-9.5632435536255639E-2,0]
["Strømpeforing Ø 800 mm < Ledningsnet ≤ Ø 1000 mm","meter",50,686.31,770.38,770.38,0.12249566522416992,0]
["Strømpeforing Ø 1000 mm < Ledningsnet ≤ Ø 1200 mm","meter",50,151.72,151.72,151.72,0,0]
["Strømpeforing Ø 1200 mm < Ledningsnet ≤ Ø 1600 mm","meter",50,315.37721055134739,315.38260000000002,315.38260000000002,1.7088896953632448E-5,0]
["Ledningsnet - Indre city",null,null,null,null,null,"",""]
["Ledningsnet ≤ Ø 200 mm ","meter",75,36519.371067067703,38106.615099999952,38122.615099999952,4.3463071420843491E-2,4.1987460597097277E-4]
["Ø 200 mm < Ledningsnet ≤ Ø 500 mm ","meter",75,76768.00934012678,76921.459500000026,77274.089500000002,1.9988815809118183E-3,4.5842863914974915E-3]
["Ø 500 mm < Ledningsnet ≤ Ø 800 mm","meter",75,14695.101232250187,15905.151799999996,15905.151799999996,8.2343806185846913E-2,0]
["Ø 800 mm < Ledningsnet ≤ Ø 1000 mm","meter",75,3440.7507636269561,3544.5945000000015,3544.5945000000015,3.0180545906086473E-2,0]
["Ø 1000 mm < Ledningsnet ≤ Ø 1200 mm","meter",75,3444.702439115385,3718.1127999999994,3718.1127999999994,7.9371256506796398E-2,0]
["Ø 1200 mm < Ledningsnet ≤ Ø 1600 mm","meter",75,3435.6053434496994,3799.9192000000012,3799.9192000000012,0.10604065954341933,0]
["Ledningsnet > Ø 1600 mm (rørbassiner og transportledninger)","meter",75,8578.2893934647054,8313.2204000000002,8313.2203999999983,-3.0899982654659069E-2,-2.1880683008787502E-16]
["Strømpeforing ≤ Ø 200 mm","meter",50,22386.68,23361.330000000045,23363.470000000045,4.3537049709918806E-2,9.1604373552336862E-5]
["Strømpeforing Ø 200 mm < Ledningsnet ≤ Ø 500 mm","meter",50,66174.76999999999,67989.640000000101,67996.770000000091,2.742540699423832E-2,1.048689182644605E-4]
["Strømpeforing Ø 500 mm < Ledningsnet ≤ Ø 800 mm","meter",50,10011.199999999999,10278.779999999997,10278.779999999997,2.6728064567684007E-2,0]
["Strømpeforing Ø 800 mm < Ledningsnet ≤ Ø 1000 mm","meter",50,1515.6100000000004,1515.8500000000004,1515.8500000000004,1.583520826597931E-4,0]
["Strømpeforing Ø 1000 mm < Ledningsnet ≤ Ø 1200 mm","meter",50,972.11000000000013,1164.28,1164.28,0.19768338973984406,0]
["Strømpeforing Ø 1200 mm < Ledningsnet ≤ Ø 1600 mm","meter",50,1216.2736519689677,1371.3544999999997,1371.3544999999997,0.12750489807945686,0]
["Brønde og stik, ledningsnet - Land",null,null,null,null,null,"",""]
["Brønde","stk.",75,44.759300000000003,45,45,5.3776533591900853E-3,0]
["Stik","stk.",75,23,23,23,0,0]
["Brønde og stik, ledningsnet - By",null,null,null,null,null,"",""]
["Brønde","stk.",75,163.65450000000044,168,168,2.6552890387979242E-2,0]
["Stik","stk.",75,37,36,36,-2.7027027027027029E-2,0]
["Brønde og stik, ledningsnet - City",null,null,null,null,null,"",""]
["Brønde","stk.",75,381.0489,423,423,0.11009374387381776,0]
["Stik","stk.",75,818,828,828,{"$f":"IF(D67=\"\",IF(E67>0,\"Ny data\",IF(E67=\"\",\"\",0)),IF(D67=0,IF(E67=0,0,\"Ny data\"),(E67-D67)/D67))","v":1.2224938875305624E-2},{"$f":"IF(E67=\"\",IF(F67>0,\"Ny data\",IF(F67=\"\",\"\",0)),IF(E67=0,IF(F67=0,0,\"Ny data\"),(F67-E67)/E67))","v":0}]
["Brønde og stik, ledningsnet - Indre city",null,null,null,null,null,"",""]
["Brønde","stk.",75,1951.5622000000001,2057,2071,5.4027383805650635E-2,6.8060281964025283E-3]
["Stik","stk.",75,3577,3657,3663,2.2365110427732739E-2,1.6406890894175555E-3]
["Små pumpestationer (<100 l/s) inkl. SRO-anlæg - Land",null,null,null,null,null,"",""]
["Tryksatte minipumpestationer (husstandssystemer)","stk.",30,0,null,null,0,""]
["Pumpestationer i brønde (< 6,25 m2), Konstruktioner","stk.",50,0,null,null,0,""]
["Pumpestationer i brønde (< 6,25 m2), Mek/EL","stk.",20,0,null,null,0,""]
["Pumpestationer i brønde (< 6,25 m2), SRO","stk.",10,0,null,null,0,""]
["Pumpestationer m. overbygning (< 20 m2), Konstruktioner","stk.",50,0,null,null,0,""]
["Pumpestationer m. overbygning (< 20 m2), Mek/EL","stk.",20,0,null,null,0,""]
["Pumpestationer m. overbygning (< 20 m2), SRO","stk.",10,0,null,null,0,""]
["Pumpestationer i underjordiske bygværker (<50 m2), Konstruktioner","stk.",50,0,null,null,0,""]
["Pumpestationer i underjordiske bygværker (<50 m2), Mek/El","stk.",20,0,null,null,0,""]
["Pumpestationer i underjordiske bygværker (<50 m2), SRO","stk.",10,0,null,null,0,""]
["Små pumpestationer (<100 l/s) inkl. SRO-anlæg - By",null,null,null,null,null,"",""]
["Tryksatte minipumpestationer (husstandssystemer)","stk.",30,0,null,null,0,""]
["Pumpestationer i brønde (< 6,25 m2), Konstruktioner","stk.",50,0,null,null,0,""]
["Pumpestationer i brønde (< 6,25 m2), Mek/EL","stk.",20,0,null,null,0,""]
["Pumpestationer i brønde (< 6,25 m2), SRO","stk.",10,0,null,null,0,""]
["Pumpestationer m. overbygning (< 20 m2), Konstruktioner","stk.",50,0,null,null,0,""]
["Pumpestationer m. overbygning (< 20 m2), Mek/EL","stk.",20,0,null,null,0,""]
["Pumpestationer m. overbygning (< 20 m2), SRO","stk.",10,0,null,null,0,""]
["Pumpestationer i underjordiske bygværker (<50 m2), Konstruktioner","stk.",50,0,null,null,0,""]
["Pumpestationer i underjordiske bygværker (<50 m2), Mek/El","stk.",20,2,2,2,0,0]
["Pumpestationer i underjordiske bygværker (<50 m2), SRO","stk.",10,2,2,2,0,0]
["Små pumpestationer (<100 l/s) inkl. SRO-anlæg - City",null,null,null,null,null,"",""]
["Tryksatte minipumpestationer (husstandssystemer)","stk.",30,0,null,null,0,""]
["Pumpestationer i brønde (< 6,25 m2), Konstruktioner","stk.",50,0,null,null,0,""]
["Pumpestationer i brønde (< 6,25 m2), Mek/EL","stk.",20,0,null,null,0,""]
["Pumpestationer i brønde (< 6,25 m2), SRO","stk.",10,0,null,null,0,""]
["Pumpestationer m. overbygning (< 20 m2), Konstruktioner","stk.",50,0,null,null,0,""]
["Pumpestationer m. overbygning (< 20 m2), Mek/EL","stk.",20,0,null,null,0,""]
["Pumpestationer m. overbygning (< 20 m2), SRO","stk.",10,0,null,null,0,""]
["Pumpestationer i underjordiske bygværker (<50 m2), Konstruktioner","stk.",50,0,null,null,0,""]
["Pumpestationer i underjordiske bygværker (<50 m2), Mek/El","stk.",20,0,null,null,0,""]
["Pumpestationer i underjordiske bygværker (<50 m2), SRO","stk.",10,0,null,null,0,""]
["Små pumpestationer (<100 l/s) inkl. SRO-anlæg - Indre city",null,null,null,null,null,"",""]
["Tryksatte minipumpestationer (husstandssystemer)","stk.",30,0,0,0,0,0]
["Pumpestationer i brønde (< 6,25 m2), Konstruktioner","stk.",50,3,3,3,0,0]
["Pumpestationer i brønde (< 6,25 m2), Mek/EL","stk.",20,3,3,3,0,0]
["Pumpestationer i brønde (< 6,25 m2), SRO","stk.",10,0,0,0,0,0]
["Pumpestationer m. overbygning (< 20 m2), Konstruktioner","stk.",50,0,0,0,0,0]
["Pumpestationer m. overbygning (< 20 m2), Mek/EL","stk.",20,0,0,0,0,0]
["Pumpestationer m. overbygning (< 20 m2), SRO","stk.",10,0,0,0,0,0]
["Pumpestationer i underjordiske bygværker (<50 m2), Konstruktioner","stk.",50,1,1,1,0,0]
["Pumpestationer i underjordiske bygværker (<50 m2), Mek/El","stk.",20,3,5,5,0.66666666666666663,0,"Pumper ved FRB idrætsanlæg"]
["Pumpestationer i underjordiske bygværker (<50 m2), SRO","stk.",10,3,5,5,0.66666666666666663,0,"Pumper ved FRB idrætsanlæg"]
["Store pumpestationer: inkl. SRO-anlæg - Land",null,null,null,null,null,"",""]
["Kælder","m2",75,0,null,null,0,""]
["Pumpeinstallation Miljøklasse A (100-300 l/s) - Mek/EL","stk.",20,0,null,null,0,""]
["Pumpeinstallation Miljøklasse A (100-300 l/s) - SRO","stk.",10,0,null,null,0,""]
["Pumpeinstallation Miljøklasse A (300-600 l/s) - Mek/EL","stk.",20,0,null,null,0,""]
["Pumpeinstallation Miljøklasse A (300-600 l/s) - SRO","stk.",10,0,null,null,0,""]
["Pumpeinstallation Miljøklasse A (600-1.000 l/s) - Mek/EL","stk.",20,0,null,null,0,""]
["Pumpeinstallation Miljøklasse A (600-1.000 l/s) - SRO","stk.",10,0,null,null,0,""]
["Pumpeinstallation Miljøklasse A (1.000-1.500 l/s) - Mek/EL","stk.",20,0,null,null,0,""]
["Pumpeinstallation Miljøklasse A (1.000-1.500 l/s) - SRO","stk.",10,0,null,null,0,""]
["Pumpeinstallation Miljøklasse B (100-300 l/s) - Mek/EL","stk.",20,0,null,null,0,""]
["Pumpeinstallation Miljøklasse B (100-300 l/s) - SRO","stk.",10,0,null,null,0,""]
["Pumpeinstallation Miljøklasse B (300-600 l/s) - Mek/EL","stk.",20,0,null,null,0,""]
["Pumpeinstallation Miljøklasse B (300-600 l/s) - SRO","stk.",10,0,null,null,0,""]
["Pumpeinstallation Miljøklasse B (600-1.000 l/s) - Mek/EL","stk.",20,0,null,null,0,""]
["Pumpeinstallation Miljøklasse B (600-1.000 l/s) - SRO","stk.",10,0,null,null,0,""]
["Pumpeinstallation Miljøklasse B (1.000-1.500 l/s) - Mek/EL","stk.",20,0,null,null,{"$f":"IF(D131=\"\",IF(E131>0,\"Ny data\",IF(E131=\"\",\"\",0)),IF(D131=0,IF(E131=0,0,\"Ny data\"),(E131-D131)/D131))","v":0},{"$f":"IF(E131=\"\",IF(F131>0,\"Ny data\",IF(F131=\"\",\"\",0)),IF(E131=0,IF(F131=0,0,\"Ny data\"),(F131-E131)/E131))","v":""}]
["Pumpeinstallation Miljøklasse B (1.000-1.500 l/s) - SRO","stk.",10,0,null,null,0,""]
["Overbygning","m2",75,0,null,null,0,""]
["Store pumpestationer: inkl. SRO-anlæg - By",null,null,null,null,null,"",""]
["Kælder","m2",75,508.87,508.86999999999995,508.86999999999995,-1.1170518769196065E-16,0]
["Pumpeinstallation Miljøklasse A (100-300 l/s) - Mek/EL","stk.",20,0.04,0.04,0.04,0,0]
["Pumpeinstallation Miljøklasse A (100-300 l/s) - SRO","stk.",10,0.04,0.04,0.04,0,0]
["Pumpeinstallation Miljøklasse A (300-600 l/s) - Mek/EL","stk.",20,0,0,0,0,0]
["Pumpeinstallation Miljøklasse A (300-600 l/s) - SRO","stk.",10,0,0,0,0,0]
["Pumpeinstallation Miljøklasse A (600-1.000 l/s) - Mek/EL","stk.",20,0.38200000000000001,0.38200000000000001,0.38200000000000001,0,0]
["Pumpeinstallation Miljøklasse A (600-1.000 l/s) - SRO","stk.",10,0.38200000000000001,0.38200000000000001,0.38200000000000001,0,0]
["Pumpeinstallation Miljøklasse A (1.000-1.500 l/s) - Mek/EL","stk.",20,2.1659999999999999,2.1659999999999999,2.1659999999999999,0,0]
["Pumpeinstallation Miljøklasse A (1.000-1.500 l/s) - SRO","stk.",10,2.1659999999999999,2.1659999999999999,2.1659999999999999,0,0]
["Pumpeinstallation Miljøklasse B (100-300 l/s) - Mek/EL","stk.",20,0,0,0,0,0]
["Pumpeinstallation Miljøklasse B (100-300 l/s) - SRO","stk.",10,0,0,0,0,0]
["Pumpeinstallation Miljøklasse B (300-600 l/s) - Mek/EL","stk.",20,0,0,0,0,0]
["Pumpeinstallation Miljøklasse B (300-600 l/s) - SRO","stk.",10,0,0,0,0,0]
["Pumpeinstallation Miljøklasse B (600-1.000 l/s) - Mek/EL","stk.",20,0,0,0,0,0]
["Pumpeinstallation Miljøklasse B (600-1.000 l/s) - SRO","stk.",10,0,0,0,0,0]
["Pumpeinstallation Miljøklasse B (1.000-1.500 l/s) - Mek/EL","stk.",20,0,0,0,0,0]
["Pumpeinstallation Miljøklasse B (1.000-1.500 l/s) - SRO","stk.",10,0,0,0,0,0]
["Overbygning ","m2",75,437.42899999999997,437.42899999999997,437.42899999999997,0,0]
["Store pumpestationer: inkl. SRO-anlæg - City",null,null,null,null,null,"",""]
["Kælder","m2",75,174.583,175,175,2.3885487132195094E-3,0]
["Pumpeinstallation Miljøklasse A (100-300 l/s) - Mek/EL","stk.",20,0,0,0,0,0]
["Pumpeinstallation Miljøklasse A (100-300 l/s) - SRO","stk.",10,0,0,0,0,0]
["Pumpeinstallation Miljøklasse A (300-600 l/s) - Mek/EL","stk.",20,0.71,0.71,0.71,0,0]
["Pumpeinstallation Miljøklasse A (300-600 l/s) - SRO","stk.",10,0.71,0.71,0.71,0,0]
["Pumpeinstallation Miljøklasse A (600-1.000 l/s) - Mek/EL","stk.",20,0.20100000000000001,0.20100000000000001,0.20100000000000001,0,0]
["Pumpeinstallation Miljøklasse A (600-1.000 l/s) - SRO","stk.",10,0.20100000000000001,0.20100000000000001,0.20100000000000001,0,0]
["Pumpeinstallation Miljøklasse A (1.000-1.500 l/s) - Mek/EL","stk.",20,0,0,0,0,0]
["Pumpeinstallation Miljøklasse A (1.000-1.500 l/s) - SRO","stk.",10,0,0,0,0,0]
["Pumpeinstallation Miljøklasse B (100-300 l/s) - Mek/EL","stk.",20,2,2,2,0,0]
["Pumpeinstallation Miljøklasse B (100-300 l/s) - SRO","stk.",10,2,2,2,0,0]
["Pumpeinstallation Miljøklasse B (300-600 l/s) - Mek/EL","stk.",20,0,0,0,0,0]
["Pumpeinstallation Miljøklasse B (300-600 l/s) - SRO","stk.",10,0,0,0,0,0]
["Pumpeinstallation Miljøklasse B (600-1.000 l/s) - Mek/EL","stk.",20,0,0,0,0,0]
["Pumpeinstallation Miljøklasse B (600-1.000 l/s) - SRO","stk.",10,0,0,0,0,0]
["Pumpeinstallation Miljøklasse B (1.000-1.500 l/s) - Mek/EL","stk.",20,0,0,0,0,0]
["Pumpeinstallation Miljøklasse B (1.000-1.500 l/s) - SRO","stk.",10,0,0,0,0,0]
["Overbygning ","m2",75,84.960999999999999,85,85,4.5903414507834748E-4,0]
["Store pumpestationer: inkl. SRO-anlæg - Indre city",null,null,null,null,null,"",""]
["Kælder","m2",75,0,80,80,"Ny data",0,"Ny pumpestationer ved oplandet til idrætsanlægget"]
["Pumpeinstallation Miljøklasse A (100-300 l/s) - Mek/EL","stk.",20,0,0,0,0,0]
["Pumpeinstallation Miljøklasse A (100-300 l/s) - SRO","stk.",10,0,0,0,0,0]
["Pumpeinstallation Miljøklasse A (300-600 l/s) - Mek/EL","stk.",20,0,0,0,0,0]
["Pumpeinstallation Miljøklasse A (300-600 l/s) - SRO","stk.",10,0,0,0,0,0]
["Pumpeinstallation Miljøklasse A (600-1.000 l/s) - Mek/EL","stk.",20,0,0,0,0,0]
["Pumpeinstallation Miljøklasse A (600-1.000 l/s) - SRO","stk.",10,0,0,0,0,0]
["Pumpeinstallation Miljøklasse A (1.000-1.500 l/s) - Mek/EL","stk.",20,0,0,0,0,0]
["Pumpeinstallation Miljøklasse A (1.000-1.500 l/s) - SRO","stk.",10,0,0,0,0,0]
["Pumpeinstallation Miljøklasse B (100-300 l/s) - Mek/EL","stk.",20,0,0,0,0,0]
["Pumpeinstallation Miljøklasse B (100-300 l/s) - SRO","stk.",10,0,0,0,0,0]
["Pumpeinstallation Miljøklasse B (300-600 l/s) - Mek/EL","stk.",20,0,0,0,0,0]
["Pumpeinstallation Miljøklasse B (300-600 l/s) - SRO","stk.",10,0,0,0,0,0]
["Pumpeinstallation Miljøklasse B (600-1.000 l/s) - Mek/EL","stk.",20,0,0,0,0,0]
["Pumpeinstallation Miljøklasse B (600-1.000 l/s) - SRO","stk.",10,0,0,0,0,0]
["Pumpeinstallation Miljøklasse B (1.000-1.500 l/s) - Mek/EL","stk.",20,0,4,4,"Ny data",0,"Ny pumpestationer ved oplandet til idrætsanlægget"]
["Pumpeinstallation Miljøklasse B (1.000-1.500 l/s) - SRO","stk.",10,0,4,4,"Ny data",0,"Ny pumpestationer ved oplandet til idrætsanlægget"]
["Overbygning","m2",75,0,0,0,0,0]
["Overløbsbygværker - Land",null,null,null,null,null,"",""]
["Kælder (< 7 m2) ","stk.",75,0,null,null,0,""]
["Kælder (7 - 20 m2) ","m2",75,0,null,null,0,""]
["Kælder (20 - 30 m2)","m2",75,0,null,null,0,""]
["Installationer (mindre end 7 m2)","stk.",20,0,null,null,{"$f":"IF(D195=\"\",IF(E195>0,\"Ny data\",IF(E195=\"\",\"\",0)),IF(D195=0,IF(E195=0,0,\"Ny data\"),(E195-D195)/D195))","v":0},{"$f":"IF(E195=\"\",IF(F195>0,\"Ny data\",IF(F195=\"\",\"\",0)),IF(E195=0,IF(F195=0,0,\"Ny data\"),(F195-E195)/E195))","v":""}]
["Installationer, Miljøklasse A. (7-20 m2) - Mek/EL","stk.",20,0,null,null,0,""]
["Installationer, Miljøklasse A. (7-20 m2) - SRO","stk.",10,0,null,null,0,""]
["Installationer, Miljøklasse A. (20-30 m2) - Mek/EL","stk.",20,0,null,null,0,""]
["Installationer, Miljøklasse A. (20-30 m2) - SRO","stk.",10,0,null,null,0,""]
["Installationer, Miljøklasse B. (7-20 m2) - Mek/EL","stk.",20,0,null,null,0,""]
["Installationer, Miljøklasse B. (7-20 m2) - SRO","stk.",10,0,null,null,0,""]
["Installationer, Miljøklasse B. (20-30 m2) - Mek/EL","stk.",20,0,null,null,0,""]
["Installationer, Miljøklasse B. (20-30 m2) - SRO","stk.",10,0,null,null,0,""]
["Overbygning","stk.",75,0,null,null,0,""]
["Overløbsbygværker - By",null,null,null,null,null,"",""]
["Kælder (< 7 m2) ","stk.",75,3,{"$f":"17-3","v":14},{"$f":"17-3","v":14},3.6666666666666665,0,"Ny bygværker er registreret"]
["Kælder (7 - 20 m2) ","m2",75,12.732999999999999,13,13,2.0969135317678571E-2,0]
["Kælder (20 - 30 m2)","m2",75,246.87099999999998,247,247,5.2254011204239906E-4,0]
["Installationer (mindre end 7 m2)","stk.",20,0,null,null,0,""]
["Installationer, Miljøklasse A. (7-20 m2) - Mek/EL","stk.",20,0,0,0,0,0]
["Installationer, Miljøklasse A. (7-20 m2) - SRO","stk.",10,2.1999999999999999E-2,2.1999999999999999E-2,2.1999999999999999E-2,0,0]
["Installationer, Miljøklasse A. (20-30 m2) - Mek/EL","stk.",20,4.5200000000000005,4.5200000000000005,4.5200000000000005,0,0]
["Installationer, Miljøklasse A. (20-30 m2) - SRO","stk.",10,4.5200000000000005,4.5200000000000005,4.5200000000000005,0,0]
["Installationer, Miljøklasse B. (7-20 m2) - Mek/EL","stk.",20,0,0,0,0,0]
["Installationer, Miljøklasse B. (7-20 m2) - SRO","stk.",10,0,0,0,0,0]
["Installationer, Miljøklasse B. (20-30 m2) - Mek/EL","stk.",20,0,0,0,0,0]
["Installationer, Miljøklasse B. (20-30 m2) - SRO","stk.",10,0,0,0,0,0]
["Overbygning","stk.",75,0,0,0,0,0]
["Overløbsbygværker - City",null,null,null,null,null,"",""]
["Kælder (< 7 m2) ","stk.",75,14,16,16,0.14285714285714285,0]
["Kælder (7 - 20 m2) ","m2",75,0,0,0,0,0]
["Kælder (20 - 30 m2)","m2",75,110.05000000000001,110,110,-4.5433893684699103E-4,0]
["Installationer (mindre end 7 m2)","stk.",20,0,null,null,0,""]
["Installationer, Miljøklasse A. (7-20 m2) - Mek/EL","stk.",20,0,null,null,0,""]
["Installationer, Miljøklasse A. (7-20 m2) - SRO","stk.",10,0,null,null,0,""]
["Installationer, Miljøklasse A. (20-30 m2) - Mek/EL","stk.",20,2.84,2.84,2.84,0,0]
["Installationer, Miljøklasse A. (20-30 m2) - SRO","stk.",10,2.84,2.84,2.84,0,0]
["Installationer, Miljøklasse B. (7-20 m2) - Mek/EL","stk.",20,0,null,null,0,""]
["Installationer, Miljøklasse B. (7-20 m2) - SRO","stk.",10,0,null,null,0,""]
["Installationer, Miljøklasse B. (20-30 m2) - Mek/EL","stk.",20,0,null,null,0,""]
["Installationer, Miljøklasse B. (20-30 m2) - SRO","stk.",10,0,null,null,0,""]
["Overbygning (efter beliggenhed) ","stk.",75,0,null,null,0,""]
["Overløbsbygværker - Indre city",null,null,null,null,null,"",""]
["Kælder (< 7 m2) ","stk.",75,102,92,92,-9.8039215686274508E-2,0]
["Kælder (7 - 20 m2) ","m2",75,0,0,0,0,0]
["Kælder (20 - 30 m2)","m2",75,0,0,0,0,0]
["Installationer (mindre end 7 m2)","stk.",20,0,null,null,0,""]
["Installationer, Miljøklasse A. (7-20 m2) - Mek/EL","stk.",20,0,null,null,0,""]
["Installationer, Miljøklasse A. (7-20 m2) - SRO","stk.",10,0,null,null,0,""]
["Installationer, Miljøklasse A. (20-30 m2) - Mek/EL","stk.",20,0,null,null,0,""]
["Installationer, Miljøklasse A. (20-30 m2) - SRO","stk.",10,0,null,null,0,""]
["Installationer, Miljøklasse B. (7-20 m2) - Mek/EL","stk.",20,0,null,null,0,""]
["Installationer, Miljøklasse B. (7-20 m2) - SRO","stk.",10,0,null,null,0,""]
["Installationer, Miljøklasse B. (20-30 m2) - Mek/EL","stk.",20,0,null,null,0,""]
["Installationer, Miljøklasse B. (20-30 m2) - SRO","stk.",10,0,null,null,0,""]
["Overbygning","stk.",75,0,null,null,0,""]
["Forsinkelsesbassiner - Land",null,null,null,null,null,"",""]
["Forsinkelsesbassiner, lukkede uden automatisk rensning og SRO (mindre end 1.000 m3)","m³",50,0,316,316,"Ny data",0,"Idrætsanlægget"]
["Forsinkelsesbassiner, lukkede med automatisk rensning og SRO (mindre end 1.000 m3) - Konstruktioner","m³",75,0,null,null,0,""]
["Forsinkelsesbassiner, lukkede med automatisk rensning og SRO (mindre end 1.000 m3) - Mek/EL","m³",20,0,null,null,0,""]
["Forsinkelsesbassiner, lukkede med automatisk rensning og SRO (mindre end 1.000 m3) - SRO ","m³",10,0,null,null,0,""]
["Forsinkelsesbassiner, lukkede (1.000-4.000 m3) - Konstruktioner","m³",75,0,null,null,0,""]
["Forsinkelsesbassiner, lukkede (1.000-4.000 m3) - Mek/EL","m³",20,0,null,null,0,""]
["Forsinkelsesbassiner, lukkede (1.000-4.000 m3) - SRO","m³",10,0,null,null,0,""]
["Forsinkelsesbassiner, lukkede (4.000-10.000 m3) - Konstruktioner","m³",75,0,null,null,0,""]
["Forsinkelsesbassiner, lukkede (4.000-10.000 m3) - Mek/EL","m³",20,0,null,null,0,""]
["Forsinkelsesbassiner, lukkede (4.000-10.000 m3) - SRO","m³",10,0,null,null,0,""]
["Forsinkelsesbassiner, lukkede (større end 10.000 m3) - Konstruktioner","m³",75,0,null,null,0,""]
["Forsinkelsesbassiner, lukkede (større end 10.000 m3) - Mek/EL","m³",20,0,null,null,{"$f":"IF(D259=\"\",IF(E259>0,\"Ny data\",IF(E259=\"\",\"\",0)),IF(D259=0,IF(E259=0,0,\"Ny data\"),(E259-D259)/D259))","v":0},{"$f":"IF(E259=\"\",IF(F259>0,\"Ny data\",IF(F259=\"\",\"\",0)),IF(E259=0,IF(F259=0,0,\"Ny data\"),(F259-E259)/E259))","v":""}]
["Forsinkelsesbassiner, lukkede (større end 10.000 m3) - SRO","m³",10,0,null,null,0,""]
["Forsinkelsesbassiner - By",null,null,null,null,null,"",""]
["Forsinkelsesbassiner, lukkede uden automatisk rensning og SRO (mindre end 1.000 m3)","m³",50,5300.875,5300.875,5300.875,0,0]
["Forsinkelsesbassiner, lukkede med automatisk rensning og SRO (mindre end 1.000 m3) - Konstruktioner","m³",75,0,0,0,0,0]
["Forsinkelsesbassiner, lukkede med automatisk rensning og SRO (mindre end 1.000 m3) - Mek/EL","m³",20,0,0,0,0,0]
["Forsinkelsesbassiner, lukkede med automatisk rensning og SRO (mindre end 1.000 m3) - SRO ","m³",10,0,0,0,0,0]
["Forsinkelsesbassiner, lukkede (1.000-4.000 m3) - Konstruktioner","m³",75,0,0,0,0,0]
["Forsinkelsesbassiner, lukkede (1.000-4.000 m3) - Mek/EL","m³",20,0,0,0,0,0]
["Forsinkelsesbassiner, lukkede (1.000-4.000 m3) - SRO","m³",10,0,0,0,0,0]
["Forsinkelsesbassiner, lukkede (4.000-10.000 m3) - Konstruktioner","m³",75,0,0,0,0,0]
["Forsinkelsesbassiner, lukkede (4.000-10.000 m3) - Mek/EL","m³",20,0,0,0,0,0]
["Forsinkelsesbassiner, lukkede (4.000-10.000 m3) - SRO","m³",10,0,0,0,0,0]
["Forsinkelsesbassiner, lukkede (større end 10.000 m3) - Konstruktioner","m³",75,5655,5655,5655,0,0]
["Forsinkelsesbassiner, lukkede (større end 10.000 m3) - Mek/EL","m³",20,5655,5655,5655,0,0]
["Forsinkelsesbassiner, lukkede (større end 10.000 m3) - SRO","m³",10,5655,5655,5655,0,0]
["Forsinkelsesbassiner - City",null,null,null,null,null,"",""]
["Forsinkelsesbassiner, lukkede uden automatisk rensning og SRO (mindre end 1.000 m3)","m³",50,0,null,null,0,""]
["Forsinkelsesbassiner, lukkede med automatisk rensning og SRO (mindre end 1.000 m3) - Konstruktioner","m³",75,0,null,null,0,""]
["Forsinkelsesbassiner, lukkede med automatisk rensning og SRO (mindre end 1.000 m3) - Mek/EL","m³",20,0,null,null,0,""]
["Forsinkelsesbassiner, lukkede med automatisk rensning og SRO (mindre end 1.000 m3) - SRO ","m³",10,0,null,null,0,""]
["Forsinkelsesbassiner, lukkede (1.000-4.000 m3) - Konstruktioner","m³",75,0,null,null,0,""]
["Forsinkelsesbassiner, lukkede (1.000-4.000 m3) - Mek/EL","m³",20,0,null,null,0,""]
["Forsinkelsesbassiner, lukkede (1.000-4.000 m3) - SRO","m³",10,0,null,null,0,""]
["Forsinkelsesbassiner, lukkede (4.000-10.000 m3) - Konstruktioner","m³",75,0,null,null,0,""]
["Forsinkelsesbassiner, lukkede (4.000-10.000 m3) - Mek/EL","m³",20,0,null,null,0,""]
["Forsinkelsesbassiner, lukkede (4.000-10.000 m3) - SRO","m³",10,0,null,null,0,""]
["Forsinkelsesbassiner, lukkede (større end 10.000 m3) - Konstruktioner","m³",75,0,null,null,0,""]
["Forsinkelsesbassiner, lukkede (større end 10.000 m3) - Mek/EL","m³",20,0,null,null,0,""]
["Forsinkelsesbassiner, lukkede (større end 10.000 m3) - SRO","m³",10,0,null,null,0,""]
["Forsinkelsesbassiner - Indre city",null,null,null,null,null,"",""]
["Forsinkelsesbassiner, lukkede uden automatisk rensning og SRO (mindre end 1.000 m3)","m³",50,2044,2230,2230,9.0998043052837568E-2,0]
["Forsinkelsesbassiner, lukkede med automatisk rensning og SRO (mindre end 1.000 m3) - Konstruktioner","m³",75,1010,1010,1010,0,0]
["Forsinkelsesbassiner, lukkede med automatisk rensning og SRO (mindre end 1.000 m3) - Mek/EL","m³",20,1010,1010,1010,0,0]
["Forsinkelsesbassiner, lukkede med automatisk rensning og SRO (mindre end 1.000 m3) - SRO ","m³",10,1010,1010,1010,0,0]
["Forsinkelsesbassiner, lukkede (1.000-4.000 m3) - Konstruktioner","m³",75,0,null,null,0,""]
["Forsinkelsesbassiner, lukkede (1.000-4.000 m3) - Mek/EL","m³",20,0,null,null,0,""]
["Forsinkelsesbassiner, lukkede (1.000-4.000 m3) - SRO","m³",10,0,null,null,0,""]
["Forsinkelsesbassiner, lukkede (4.000-10.000 m3) - Konstruktioner","m³",75,0,null,null,0,""]
["Forsinkelsesbassiner, lukkede (4.000-10.000 m3) - Mek/EL","m³",20,0,null,null,0,""]
["Forsinkelsesbassiner, lukkede (4.000-10.000 m3) - SRO","m³",10,0,null,null,0,""]
["Forsinkelsesbassiner, lukkede (større end 10.000 m3) - Konstruktioner","m³",75,0,null,null,0,""]
["Forsinkelsesbassiner, lukkede (større end 10.000 m3) - Mek/EL","m³",20,0,null,null,0,""]
["Forsinkelsesbassiner, lukkede (større end 10.000 m3) - SRO","m³",10,0,null,null,0,""]
["Sparebassin/Laguner/Jordbassiner - Land",null,null,null,null,null,"",""]
["Jordbassin Klasse A og B","m³",50,0,null,null,0,""]
["Indløb-/udløbsarrangement","stk.",75,0,null,null,0,""]
["Andre bygninger (tekniske installationer, målere mv.)","m2",75,0,null,null,0,""]
["Sparebassin/Laguner/Jordbassiner - By",null,null,null,null,null,"",""]
["Jordbassin Klasse A og B","m³",50,0,null,null,0,""]
["Indløb-/udløbsarrangement","stk.",75,0,null,null,0,""]
["Andre bygninger (tekniske installationer, målere mv.)","m2",75,0,null,null,0,""]
["Sparebassin/Laguner/Jordbassiner - City",null,null,null,null,null,"",""]
["Jordbassin Klasse A og B","m³",50,250,250,250,0,0]
["Indløb-/udløbsarrangement","stk.",75,2,2,2,0,0]
["Andre bygninger (tekniske installationer, målere mv.)","m2",75,0,0,0,0,0]
["Sparebassin/Laguner/Jordbassiner - Indre city",null,null,null,null,null,"",""]
["Jordbassin Klasse A og B","m³",50,0,null,null,0,""]
["Indløb-/udløbsarrangement","stk.",75,0,null,null,0,""]
["Andre bygninger (tekniske installationer, målere mv.)","m2",75,0,null,null,0,""]

{"sheet":"Fællesfunktionsanlæg","index":2,"n_rows":13,"n_cols":9,"rows_kept":13,"cut":false,"hidden":false,"merged":[[0,0,1,0],[0,1,1,1],[0,2,1,2],[0,3,1,3],[0,8,1,8],[0,4,1,4],[0,5,1,5],[0,6,1,6],[0,7,1,7]]}
["Fællesfunktionsanlæg","Enhed","Standard-levetid","Samlet mængde per 31/12-2022","Samlet mængde per 31/12-2023","Samlet mængde per 31/12-2024","Afvigelse 2022-2023","Afvigelse 2023-2024","Bemærkninger"]
[]
["Andre",null,null,null,null,null,{"$f":"IF(D3=\"\",IF(E3>0,\"Ny data\",IF(E3=\"\",\"\",0)),IF(D3=0,IF(E3=0,0,\"Ny data\"),(E3-D3)/D3))","v":""},{"$f":"IF(E3=\"\",IF(F3>0,\"Ny data\",IF(F3=\"\",\"\",0)),IF(E3=0,IF(F3=0,0,\"Ny data\"),(F3-E3)/E3))","v":""}]
["Administrationbygninger","m2",75,1571,1571,1571,0,0]
["Arbejdsplads og kontor","stk.",5,70,70,70,0,0]
["Køretøjer, personbil","stk.",5,20,20,20,0,0]
["Køretøjer, små lastvogne (< 3.500 kg.)","stk.",5,1,1,1,0,0]
["Køretøjer, store lastvogne (> 3.500 kg.)","stk.",5,0,0,0,0,0]
["Køretøjer, entreprenørmaskiner","stk.",5,0,0,0,0,0]
["Slamsugere","stk.",5,0,0,0,0,0]
["Værksteder, garager","m2",75,0,0,0,0,0]
["Solcelleanlæg eksl. Inverter","kWp",25,0,0,0,0,0]
["Inverter til solcelleanlæg","kWp",10,0,0,0,0,0]